{"text_format":"1","workbook":"xlsx","n_sheets":3,"sheets":["Instruccions","Reformulació Pressupost Ac","Resum Pressupost"],"not_rendered":{"charts":0,"images":5,"macros":1,"external_links":0,"defined_names":7,"comments":2,"pivot_tables":0},"unopened":[],"bounds":{"document_bytes":16777216,"sheet_cells":100000,"rows_first":2000,"rows_last":500,"rows_between":2000,"halvings":0,"cell_chars":16384,"cell_head_chars":4096},"cells_cut":0,"cells_raw":0,"read":"whole","date_system":"1900"}

{"sheet":"Instruccions","index":0,"n_rows":24,"n_cols":10,"rows_kept":24,"cut":false,"hidden":false,"merged":[[22,1,22,16],[23,1,23,16],[1,9,1,11],[2,2,2,17],[4,2,4,17]]}
[]
[null,null,null,null,null,null,null,null,null,"Doc_basic3_pressup_reformulat_Ac INSTRUCCIONS"]
[null,null,"SUBVENCIONS DE L’AJUNTAMENT DE BARCELONA PER L’ENFORTIMENT DE L’ECONOMIA SOCIAL I SOLIDÀRIA I PER LA INTERCOOPERACIÓ EN L’ESTRATÈGIA #ESSBCN2030 - ENFORTIM L’ESS 2023"]
[]
[null,null,"Aspectes rellevants relacionats amb la reformulació"]
[]
[]
[]
[]
[null,"1. Emplenar la pestanya  \"Reformulació Pressupost\" amb les dades econòmiques del projecte:"]
[null,"1.1  Emplenar els quadres DADES BÀSIQUES-PREVISIÓ DE DESPESES DEL PROJECTE SUBVENCIONABLE INICIAL, amb les dades econòmiques de la proposta inicial amb subvenció atorgada."]
[null,"1.2  Emplenar els quadres DADES BÀSIQUES-PREVISIÓ DE DESPESES DEL PROJECTE REFORMULAT, amb les dades econòmiques de la proposta de reformulació."]
[null,"2. Revisar i emplenar la pestanya  \"Resum Pressupost\" amb les dades econòmiques del projecte:"]
[null,"3. Imprimir els fulls de les 2 pestanyes (Reformulació pressupost i Resum Pressupost). En format pdf."]
[]
[]
[null,"Clica la icona per generar un document PDF del llibre"]
[]
[]
[]
[]
[]
[null,"4. Si la sol·licitud es va presentar per via telemàtica, cal que registreu la documentació, telemàticament, com a tràmit específic, dins la convocatòria específica com annexió de documents addicionals i feu servir el número de tràmit que el sistema de registre us va donar en el moment de la presentació de la sol·licitud de la subvenció."]
[null,"5. En el cas que registreu la documentació telemàticament, com a instància genèrica, mitjançant certificat digital, us recomanem que aviseu a l'adreça de correu electrònic subvencions_ec_solidaria@bcn.cat, per tal de poder fer-ne un seguiment, així com també en els casos que presenteu la documentació a través d'una Oficina d'Atenció Ciutadana de l'Ajuntament, si no heu pogut obtenir el certificat digital (els requisits per obtenir-lo els trobareu a l'Oficina Virtual de Tràmits de la Seu Electrònica: https://seuelectronica.ajuntament.barcelona.cat/oficinavirtual/)."]

{"sheet":"Reformulació Pressupost Ac","index":1,"n_rows":126,"n_cols":9,"rows_kept":126,"cut":false,"hidden":false,"merged":[[122,0,122,3],[123,0,123,3],[124,0,124,3],[125,0,125,3],[118,0,118,3],[119,0,119,3],[120,0,120,3],[121,0,121,3],[104,0,104,3],[112,0,112,3],[113,0,113,3],[114,0,114,3],[101,0,101,3],[102,0,102,3],[103,0,103,3],[105,0,105,3],[106,0,106,3],[115,0,115,3],[117,0,117,3],[107,0,107,3],[109,0,109,3],[110,0,110,3],[111,0,111,3],[97,0,97,3],[98,0,98,3],[99,0,99,3],[90,0,90,3],[91,0,91,3],[92,0,92,3],[93,0,93,3],[94,0,94,3],[96,0,96,3],[89,0,89,3],[48,0,48,3],[3,0,4,8],[18,5,18,7],[95,0,95,3],[62,0,62,3],[1,1,1,8],[18,0,18,3],[10,6,10,7],[6,2,6,5],[20,0,20,3]]}
[]
[null,"Reformulació pressupost modalitat Ac"]
[]
["Programa de subvencions de l'Ajuntament de Barcelona per a la reactivació i l'enfortiment de l'Economia Social i Solidària i el desenvolupament de projectes d'intercooperació que desenvolupen l'Estratègia #ESSBCN2030"]
[]
[]
[]
["DADES BÀSIQUES"]
["Nom de la persona física/ jurídica",null,{"$f":"+IF(H9>Dadesbasiques[[#This Row],[Columna1]],\"ALERTA: La quantia de la subvenció atorgada no pot superar el 80% de la despesa total del projecte a subvencionar\", \" \")","v":" "},null,null,"  "]
["NIF de la persona física/ jurídica",null,{"$f":"+IF(H10>Dadesbasiques[[#This Row],[Columna1]],\"ALERTA: La quantia de la subvenció atorgada no pot superar el 80% de la despesa total del projecte a subvencionar\", \" \")","v":" "}]
["Nom del projecte subvencionable",null,{"$f":"+IF(H11>Dadesbasiques[[#This Row],[Columna1]],\"ALERTA: La quantia de la subvenció atorgada no pot superar el 80% de la despesa total del projecte a subvencionar\", \" \")","v":" "},null,null,null,"DADES BÀSIQUES PROJECTE REFORMULAT"]
["Import total del projecte subvencionable",null,null,null,null,null,"Import total del projecte REFORMULAT"]
["Import imputable a la subvenció municipal",null,null,null,null,null,"Import imputable a la subvenció ATORGADA"]
["Import de l'aportació / Cofinançament de l'organització",{"$f":"+B12-B13","v":0},null,null,null,null,"Import de l'aportació / Cofinançament de l'organització",{"$f":"H12-H13","v":0}]
["% de l'import sol·licitat respecte el total del projecte subvencionable (*)",{"$f":"B13/B12","v":{"$error":"#DIV/0!"}},null,null,null,null,"% de l'import sol·licitat respecte el total del projecte subvencionat",{"$f":"H13/H12","v":{"$error":"#DIV/0!"}},{"$f":"+IF(H15>Dadesbasiques[[#This Row],[Columna1]],\"*Aquest percentatge ha de ser igual o menor al percentatge subvencionat inicialment.\",\" \")","v":{"$error":"#DIV/0!"}}]
["Data inici del projecte subvencionat (dd/mm/aaaa)",null,{"$f":"+IF(H16>Dadesbasiques[[#This Row],[Columna1]],\"ALERTA: La quantia de la subvenció atorgada no pot superar el 80% de la despesa total del projecte a subvencionar\", \" \")","v":" "}]
["Data fi del projecte subvencionat (dd/mm/aaaa)",null,{"$f":"+IF(H17>Dadesbasiques[[#This Row],[Columna1]],\"ALERTA: La quantia de la subvenció atorgada no pot superar el 80% de la despesa total del projecte a subvencionar\", \" \")","v":" "}]
[]
["PREVISIÓ DE DESPESES DEL PROJECTE SUBVENCIONABLE INICIAL",null,null,null,null,"PREVISIÓ DE DESPESES DEL PROJECTE REFORMULAT"]
[]
["Ac1. Formació grupal per a persones sòcies, treballadores i voluntàries de l’empresa/organització, d’un mínim de 10 persones i de 10 hores per persona formada grupalment."]
["PARTIDES","Import imputable a la subvenció municipal","Import de l'aportació / Cofinançament de l'organització","Import total del projecte",null,"Import imputable a la subvenció municipal","Import de l'aportació / Cofinançament de l'organització","Import total del projecte"]
["AC1.D1.  Honoraris de les persones formadores externes (preu màxim hora 60€/hora, inclòs IRPF si escau, no inclou IVA si formació no està exempta)",{"$f":"SUM(B24:B26)","v":0},{"$f":"SUM(C24:C26)","v":0},{"$f":"SUM(DespesesProjecteAb1[[#This Row],[Import imputable a la subvenció municipal]],DespesesProjecteAb1[[#This Row],[Import de l''aportació / Cofinançament de l''organització]])","v":0},null,{"$f":"SUM(F24:F26)","v":0},{"$f":"SUM(G24:G26)","v":0},{"$f":"+F23+G23","v":0}]
[null,null,null,{"$f":"SUM(DespesesProjecteAb1[[#This Row],[Import imputable a la subvenció municipal]],DespesesProjecteAb1[[#This Row],[Import de l''aportació / Cofinançament de l''organització]])","v":0},null,null,null,{"$f":"+F24+G24","v":0}]
[null,null,null,{"$f":"SUM(DespesesProjecteAb1[[#This Row],[Import imputable a la subvenció municipal]],DespesesProjecteAb1[[#This Row],[Import de l''aportació / Cofinançament de l''organització]])","v":0},null,null,null,0]
[null,null,null,{"$f":"SUM(DespesesProjecteAb1[[#This Row],[Import imputable a la subvenció municipal]],DespesesProjecteAb1[[#This Row],[Import de l''aportació / Cofinançament de l''organització]])","v":0},null,null,null,0]
["AC1.D2.  Lloguer de béns immobles vinculats directament a la realització de la formació",{"$f":"SUM(B28:B30)","v":0},{"$f":"SUM(C28:C30)","v":0},{"$f":"SUM(DespesesProjecteAb1[[#This Row],[Import imputable a la subvenció municipal]],DespesesProjecteAb1[[#This Row],[Import de l''aportació / Cofinançament de l''organització]])","v":0},null,{"$f":"SUM(F28:F30)","v":0},{"$f":"SUM(G28:G30)","v":0},0]
[null,null,null,{"$f":"SUM(DespesesProjecteAb1[[#This Row],[Import imputable a la subvenció municipal]],DespesesProjecteAb1[[#This Row],[Import de l''aportació / Cofinançament de l''organització]])","v":0},null,null,null,0]
[null,null,null,{"$f":"SUM(DespesesProjecteAb1[[#This Row],[Import imputable a la subvenció municipal]],DespesesProjecteAb1[[#This Row],[Import de l''aportació / Cofinançament de l''organització]])","v":0},null,null,null,0]
[null,null,null,{"$f":"SUM(DespesesProjecteAb1[[#This Row],[Import imputable a la subvenció municipal]],DespesesProjecteAb1[[#This Row],[Import de l''aportació / Cofinançament de l''organització]])","v":0},null,null,null,0]
["AC1.D3. Adquisició de materials i béns consumibles necessaris per la realització de la formació",{"$f":"SUM(B32:B34)","v":0},{"$f":"SUM(C32:C34)","v":0},{"$f":"SUM(DespesesProjecteAb1[[#This Row],[Import imputable a la subvenció municipal]],DespesesProjecteAb1[[#This Row],[Import de l''aportació / Cofinançament de l''organització]])","v":0},null,{"$f":"SUM(F32:F34)","v":0},{"$f":"SUM(G32:G34)","v":0},0]
[null,null,null,{"$f":"SUM(DespesesProjecteAb1[[#This Row],[Import imputable a la subvenció municipal]],DespesesProjecteAb1[[#This Row],[Import de l''aportació / Cofinançament de l''organització]])","v":0},null,null,null,0]
[null,null,null,{"$f":"SUM(DespesesProjecteAb1[[#This Row],[Import imputable a la subvenció municipal]],DespesesProjecteAb1[[#This Row],[Import de l''aportació / Cofinançament de l''organització]])","v":0},null,null,null,0]
[null,null,null,{"$f":"SUM(DespesesProjecteAb1[[#This Row],[Import imputable a la subvenció municipal]],DespesesProjecteAb1[[#This Row],[Import de l''aportació / Cofinançament de l''organització]])","v":0},null,null,null,0]
["AC1.D4. Transport – missatgeria directament vinculats amb la realització de la formació",{"$f":"SUM(B36:B38)","v":0},{"$f":"SUM(C36:C38)","v":0},{"$f":"SUM(DespesesProjecteAb1[[#This Row],[Import imputable a la subvenció municipal]],DespesesProjecteAb1[[#This Row],[Import de l''aportació / Cofinançament de l''organització]])","v":0},null,{"$f":"SUM(F36:F38)","v":0},{"$f":"SUM(G36:G38)","v":0},0]
[null,null,null,{"$f":"SUM(DespesesProjecteAb1[[#This Row],[Import imputable a la subvenció municipal]],DespesesProjecteAb1[[#This Row],[Import de l''aportació / Cofinançament de l''organització]])","v":0},null,null,null,0]
[null,null,null,{"$f":"SUM(DespesesProjecteAb1[[#This Row],[Import imputable a la subvenció municipal]],DespesesProjecteAb1[[#This Row],[Import de l''aportació / Cofinançament de l''organització]])","v":0},null,null,null,0]
[null,null,null,{"$f":"SUM(DespesesProjecteAb1[[#This Row],[Import imputable a la subvenció municipal]],DespesesProjecteAb1[[#This Row],[Import de l''aportació / Cofinançament de l''organització]])","v":0},null,null,null,0]
["AC1.D5.  Assegurances",{"$f":"SUM(B40:B42)","v":0},{"$f":"SUM(C40:C42)","v":0},{"$f":"SUM(DespesesProjecteAb1[[#This Row],[Import imputable a la subvenció municipal]],DespesesProjecteAb1[[#This Row],[Import de l''aportació / Cofinançament de l''organització]])","v":0},null,{"$f":"SUM(F40:F42)","v":0},{"$f":"SUM(G40:G42)","v":0},{"$f":"+F39+G39","v":0}]
[null,null,null,{"$f":"SUM(DespesesProjecteAb1[[#This Row],[Import imputable a la subvenció municipal]],DespesesProjecteAb1[[#This Row],[Import de l''aportació / Cofinançament de l''organització]])","v":0},null,null,null,0]
[null,null,null,{"$f":"SUM(DespesesProjecteAb1[[#This Row],[Import imputable a la subvenció municipal]],DespesesProjecteAb1[[#This Row],[Import de l''aportació / Cofinançament de l''organització]])","v":0},null,null,null,0]
[null,null,null,{"$f":"SUM(DespesesProjecteAb1[[#This Row],[Import imputable a la subvenció municipal]],DespesesProjecteAb1[[#This Row],[Import de l''aportació / Cofinançament de l''organització]])","v":0},null,null,null,0]
["AC1.D6. Viatges i desplaçaments imputables a les activitats del projecte  (màxim 10% subvenció) ",{"$f":"SUM(B44:B46)","v":0},{"$f":"SUM(C44:C46)","v":0},{"$f":"SUM(DespesesProjecteAb1[[#This Row],[Import imputable a la subvenció municipal]],DespesesProjecteAb1[[#This Row],[Import de l''aportació / Cofinançament de l''organització]])","v":0},null,{"$f":"SUM(F44:F46)","v":0},{"$f":"SUM(G44:G46)","v":0},0,{"$f":"+IF(F43>H$13*0.1,\"ALERTA: Màxim 10% de l'import imputable a la subvenció municipal\", \" \")","v":" "}]
[null,null,null,{"$f":"SUM(DespesesProjecteAb1[[#This Row],[Import imputable a la subvenció municipal]],DespesesProjecteAb1[[#This Row],[Import de l''aportació / Cofinançament de l''organització]])","v":0},null,null,null,0]
[null,null,null,{"$f":"SUM(DespesesProjecteAb1[[#This Row],[Import imputable a la subvenció municipal]],DespesesProjecteAb1[[#This Row],[Import de l''aportació / Cofinançament de l''organització]])","v":0},null,null,null,0]
[null,null,null,{"$f":"SUM(DespesesProjecteAb1[[#This Row],[Import imputable a la subvenció municipal]],DespesesProjecteAb1[[#This Row],[Import de l''aportació / Cofinançament de l''organització]])","v":0},null,null,null,0]
["TOTAL DE DESPESES PREVISTES Ac1",{"$f":"B35+B31+B27+B23+B39+B43","v":0},{"$f":"C35+C31+C27+C23+C39+C43","v":0},{"$f":"D35+D31+D27+D23+D39+D43","v":0},null,{"$f":"F35+F31+F27+F23+F39+F43","v":0},{"$f":"G35+G31+G27+G23+G39+G43","v":0},{"$f":"H35+H31+H27+H23+H39+H43","v":0}]
[]
["Ac2. Despeses de matriculació del personal de l’organització en accions formatives externes o bé despeses salarials del personal de l’empresa/organització en la participació en accions formatives públiques o comunitàries sense cost de matriculació. L'empresa/organització ha d'optar entre sol.licitar subvenció per la despesa de matriculació externa o sol.licitar subvenció per a despeses salarials en el cas de que la formació no tingui cost."]
["PARTIDES","Import imputable a la subvenció municipal","Import de l'aportació / Cofinançament de l'organització","Import total del projecte",null,"Import imputable a la subvenció municipal","Import de l'aportació / Cofinançament de l'organització","Import total del projecte"]
["AC2.D1. Despeses de matriculació en accions formatives externes (mínim de 150 hores i/o cost mínim de 600€ per a cada participant)",{"$f":"SUM(B52:B55)","v":0},{"$f":"SUM(C52:C55)","v":0},{"$f":"SUM(DespesesProjecteAb2[[#This Row],[Import imputable a la subvenció municipal]],DespesesProjecteAb2[[#This Row],[Import de l''aportació / Cofinançament de l''organització]])","v":0},null,{"$f":"SUM(F52:F55)","v":0},{"$f":"SUM(G52:G55)","v":0},{"$f":"+F51+G51","v":0}]
[null,null,null,{"$f":"SUM(DespesesProjecteAb2[[#This Row],[Import imputable a la subvenció municipal]],DespesesProjecteAb2[[#This Row],[Import de l''aportació / Cofinançament de l''organització]])","v":0},null,null,null,{"$f":"+F52+G52","v":0}]
[null,null,null,{"$f":"SUM(DespesesProjecteAb2[[#This Row],[Import imputable a la subvenció municipal]],DespesesProjecteAb2[[#This Row],[Import de l''aportació / Cofinançament de l''organització]])","v":0},null,null,null,0]
[null,null,null,{"$f":"SUM(DespesesProjecteAb2[[#This Row],[Import imputable a la subvenció municipal]],DespesesProjecteAb2[[#This Row],[Import de l''aportació / Cofinançament de l''organització]])","v":0},null,null,null,0]
[null,null,null,{"$f":"SUM(DespesesProjecteAb2[[#This Row],[Import imputable a la subvenció municipal]],DespesesProjecteAb2[[#This Row],[Import de l''aportació / Cofinançament de l''organització]])","v":0},null,null,null,0]
["AC2.D2. Cost salarial persones treballadores que participin en accions formatives de les administracions públiques, universitats i ateneus cooperatius i equivalents a les hores efectivament dedicades a aquesta formació (màxim 30% subvenció)",{"$f":"SUM(B57:B60)","v":0},{"$f":"SUM(C57:C60)","v":0},{"$f":"SUM(DespesesProjecteAb2[[#This Row],[Import imputable a la subvenció municipal]],DespesesProjecteAb2[[#This Row],[Import de l''aportació / Cofinançament de l''organització]])","v":0},null,{"$f":"SUM(F57:F60)","v":0},{"$f":"SUM(G57:G60)","v":0},0,{"$f":"+IF(F56>H$13*0.3,\"ALERTA: Màxim 30% de l'import imputable a la subvenció municipal\", \" \")","v":" "}]
[null,null,null,{"$f":"SUM(DespesesProjecteAb2[[#This Row],[Import imputable a la subvenció municipal]],DespesesProjecteAb2[[#This Row],[Import de l''aportació / Cofinançament de l''organització]])","v":0},null,null,null,0]
[null,null,null,{"$f":"SUM(DespesesProjecteAb2[[#This Row],[Import imputable a la subvenció municipal]],DespesesProjecteAb2[[#This Row],[Import de l''aportació / Cofinançament de l''organització]])","v":0},null,null,null,0]
[null,null,null,{"$f":"SUM(DespesesProjecteAb2[[#This Row],[Import imputable a la subvenció municipal]],DespesesProjecteAb2[[#This Row],[Import de l''aportació / Cofinançament de l''organització]])","v":0},null,null,null,0]
[null,null,null,{"$f":"SUM(DespesesProjecteAb2[[#This Row],[Import imputable a la subvenció municipal]],DespesesProjecteAb2[[#This Row],[Import de l''aportació / Cofinançament de l''organització]])","v":0},null,null,null,0]
["TOTAL DE DESPESES PREVISTES Ac2",{"$f":"B56+B51","v":0},{"$f":"C56+C51","v":0},{"$f":"D56+D51","v":0},null,{"$f":"F56+F51","v":0},{"$f":"G56+G51","v":0},{"$f":"H56+H51","v":0}]
[]
["Ac3. Pràctiques de les persones estudiants universitàries i de formació dual de FP en organitzacions i empreses de l’ESS"]
["PARTIDES","Import imputable a la subvenció municipal","Import de l'aportació / Cofinançament de l'organització","Import total del projecte",null,"Import imputable a la subvenció municipal","Import de l'aportació / Cofinançament de l'organització","Import total del projecte"]
["AC3.D1. Despeses d’ajut econòmic –beca- de la persona estudiant en pràctiques (durada mínima 400 hores, i cost brut hora: mínim de 6€/hora en pràctiques universitàries, i mínim d'acord amb la normativa específica Dep. Educació en FP dual)",{"$f":"SUM(B66:B69)","v":0},{"$f":"SUM(C66:C69)","v":0},{"$f":"SUM(DespesesProjecteAb14[[#This Row],[Import imputable a la subvenció municipal]],DespesesProjecteAb14[[#This Row],[Import de l''aportació / Cofinançament de l''organització]])","v":0},null,{"$f":"SUM(F66:F69)","v":0},{"$f":"SUM(G66:G69)","v":0},{"$f":"+F65+G65","v":0}]
[null,null,null,{"$f":"SUM(DespesesProjecteAb14[[#This Row],[Import imputable a la subvenció municipal]],DespesesProjecteAb14[[#This Row],[Import de l''aportació / Cofinançament de l''organització]])","v":0},null,null,null,{"$f":"+F66+G66","v":0}]
[null,null,null,{"$f":"SUM(DespesesProjecteAb14[[#This Row],[Import imputable a la subvenció municipal]],DespesesProjecteAb14[[#This Row],[Import de l''aportació / Cofinançament de l''organització]])","v":0},null,null,null,0]
[null,null,null,{"$f":"SUM(DespesesProjecteAb14[[#This Row],[Import imputable a la subvenció municipal]],DespesesProjecteAb14[[#This Row],[Import de l''aportació / Cofinançament de l''organització]])","v":0},null,null,null,0]
[null,null,null,{"$f":"SUM(DespesesProjecteAb14[[#This Row],[Import imputable a la subvenció municipal]],DespesesProjecteAb14[[#This Row],[Import de l''aportació / Cofinançament de l''organització]])","v":0},null,null,null,0]
["AC3.D2. Despeses de seguretat social de l'alumne/a en pràctiques",{"$f":"SUM(B71:B74)","v":0},{"$f":"SUM(C71:C74)","v":0},{"$f":"SUM(DespesesProjecteAb14[[#This Row],[Import imputable a la subvenció municipal]],DespesesProjecteAb14[[#This Row],[Import de l''aportació / Cofinançament de l''organització]])","v":0},null,{"$f":"SUM(F71:F74)","v":0},{"$f":"SUM(G71:G74)","v":0},0]
[null,null,null,{"$f":"SUM(DespesesProjecteAb14[[#This Row],[Import imputable a la subvenció municipal]],DespesesProjecteAb14[[#This Row],[Import de l''aportació / Cofinançament de l''organització]])","v":0},null,null,null,0]
[null,null,null,{"$f":"SUM(DespesesProjecteAb14[[#This Row],[Import imputable a la subvenció municipal]],DespesesProjecteAb14[[#This Row],[Import de l''aportació / Cofinançament de l''organització]])","v":0},null,null,null,0]
[null,null,null,{"$f":"SUM(DespesesProjecteAb14[[#This Row],[Import imputable a la subvenció municipal]],DespesesProjecteAb14[[#This Row],[Import de l''aportació / Cofinançament de l''organització]])","v":0},null,null,null,0]
[null,null,null,{"$f":"SUM(DespesesProjecteAb14[[#This Row],[Import imputable a la subvenció municipal]],DespesesProjecteAb14[[#This Row],[Import de l''aportació / Cofinançament de l''organització]])","v":0},null,null,null,0]
["AC3.D3. Despeses del contracte laboral de la formació dual, modalitat contracte de formació i aprenentatge",{"$f":"SUM(B76:B79)","v":0},{"$f":"SUM(C76:C79)","v":0},{"$f":"SUM(DespesesProjecteAb14[[#This Row],[Import imputable a la subvenció municipal]],DespesesProjecteAb14[[#This Row],[Import de l''aportació / Cofinançament de l''organització]])","v":0},null,{"$f":"SUM(F76:F79)","v":0},{"$f":"SUM(G76:G79)","v":0},0]
[null,null,null,{"$f":"SUM(DespesesProjecteAb14[[#This Row],[Import imputable a la subvenció municipal]],DespesesProjecteAb14[[#This Row],[Import de l''aportació / Cofinançament de l''organització]])","v":0},null,null,null,0]
[null,null,null,{"$f":"SUM(DespesesProjecteAb14[[#This Row],[Import imputable a la subvenció municipal]],DespesesProjecteAb14[[#This Row],[Import de l''aportació / Cofinançament de l''organització]])","v":0},null,null,null,0]
[null,null,null,{"$f":"SUM(DespesesProjecteAb14[[#This Row],[Import imputable a la subvenció municipal]],DespesesProjecteAb14[[#This Row],[Import de l''aportació / Cofinançament de l''organització]])","v":0},null,null,null,0]
[null,null,null,{"$f":"SUM(DespesesProjecteAb14[[#This Row],[Import imputable a la subvenció municipal]],DespesesProjecteAb14[[#This Row],[Import de l''aportació / Cofinançament de l''organització]])","v":0},null,null,null,0]
["AC3.D4. Despeses de gestió associades a la tramitació del Conveni de Cooperació Educativa o l’Acord Formatiu de Col·laboració/ Contracte de formació i aprenentatge",{"$f":"SUM(B81:B84)","v":0},{"$f":"SUM(C81:C84)","v":0},{"$f":"SUM(DespesesProjecteAb14[[#This Row],[Import imputable a la subvenció municipal]],DespesesProjecteAb14[[#This Row],[Import de l''aportació / Cofinançament de l''organització]])","v":0},null,{"$f":"SUM(F81:F84)","v":0},{"$f":"SUM(G81:G84)","v":0},0]
[null,null,null,{"$f":"SUM(DespesesProjecteAb14[[#This Row],[Import imputable a la subvenció municipal]],DespesesProjecteAb14[[#This Row],[Import de l''aportació / Cofinançament de l''organització]])","v":0},null,null,null,{"$f":"+F81+G81","v":0}]
[null,null,null,{"$f":"SUM(DespesesProjecteAb14[[#This Row],[Import imputable a la subvenció municipal]],DespesesProjecteAb14[[#This Row],[Import de l''aportació / Cofinançament de l''organització]])","v":0},null,null,null,0]
[null,null,null,{"$f":"SUM(DespesesProjecteAb14[[#This Row],[Import imputable a la subvenció municipal]],DespesesProjecteAb14[[#This Row],[Import de l''aportació / Cofinançament de l''organització]])","v":0},null,null,null,0]
[null,null,null,{"$f":"SUM(DespesesProjecteAb14[[#This Row],[Import imputable a la subvenció municipal]],DespesesProjecteAb14[[#This Row],[Import de l''aportació / Cofinançament de l''organització]])","v":0},null,null,null,0]
["TOTAL DE DESPESES PREVISTES Ac3",{"$f":"B65+B70+B75+B80","v":0},{"$f":"C65+C70+C75+C80","v":0},{"$f":"D65+D70+D75+D80","v":0},null,{"$f":"F65+F70+F75+F80","v":0},{"$f":"G65+G70+G75+G80","v":0},{"$f":"H65+H70+H75+H80","v":0}]
["TOTAL DE DESPESES PREVISTES DEL PROJECTE SUBVENCIONABLE (Ac1 + Ac2 + Ac3) ",{"$f":"B47+B61+B85","v":0},{"$f":"C47+C61+C85","v":0},{"$f":"D47+D61+D85","v":0},null,{"$f":"F47+F61+F85","v":0},{"$f":"G47+G61+G85","v":0},{"$f":"H47+H61+H85","v":0}]
[]
[]
[]
["Modalitat Ac: Formació: Innovació i formació per a la millora de la gestió i l'obertura de noves línies de negoci"]
["1. La quantia de la subvenció atorgada no superarà el 80% de la despesa total del projecte a subvencionar. "]
["2. Les sol•licituds poden contenir una proposta de projecte de formació que contingui les tres submodalitats (Ac1, Ac2 iAc3 ) dues d’elles o bé tant sols una submodalitat.  "]
["3. En qualsevol cas, l’import màxim de subvenció, tant si la sol·licitud conté una, dos o tres submodalitats, serà de 6.000€."]
["4. En el cas que la sol·licitud presentada sobrepassi l’import màxim, es considerarà com a import sol·licitat el màxim de l'establert a la convocatòria."]
["5. En cap cas es consideraran despeses subvencionables:\n> Els impostos indirectes quan siguin susceptibles de recuperació o compensació.\n> Les despeses d'inversió, incloses les adquisicions de béns mobles.\n> Les despeses realitzades amb data anterior a l'inici del projecte i data posterior a la finalització del projecte.\n> Altres despeses que s'indiquin a la convocatòria."]
["6. No són imputables en aquesta modalitat les despeses indirectes, detallades en l’apartat 13.3. de les bases reguladores."]
["7. La retribució de les persones contractades en el marc del projecte subvencionat no pot ser inferior al Salari Mínim Interprofessional (SMI), ni a l'estipulada al corresponent conveni o marc normatiu de referència (punt 7 de les bases 2023: requisits dels projectes)."]
["8. Els projectes subvencionats han de fomentar activitats d'interès públic o social, les quals han de ser gratuïtes per a les persones participants o en cap cas el preu ha de suposar un obstacle per a la seva participació, buscant altres formes d'accés per a persones amb dificultats econòmiques. En el cas que hi hagi algun tipus de lucre, haurà de revertir en les pròpies activitats subvencionades."]
["9. L'Ajuntament de Barcelona i les seves entitats municipals en cap cas subvencionaran el mateix projecte, executat durant el mateix període, per cap altre procediment de concessió que no sigui el regulat per les bases reguladores."]
["10. El/la beneficiari/ària no podrà alterar en cap cas el destí de les subvencions concedides."]
[]
["Submodalitat Ac1: Formació grupal per a persones sòcies, treballadores i voluntàries de l'empresa/ organització, d'un mínim de 10 persones i de 10 hores"]
["1. El preu màxim hora dels honoraris de les persones formadores externes es limita en 60€/hora, inclòs IRPF, si escau però exclòs IVA en cas que la formació no estigui exempta d'aquest impost."]
["2. Les despeses de viatges i desplaçament vinculats amb la realització de la formació i imputables a les activitats del projecte subvencionable es limiten a un màxim d'un 10% de l'import de la subvenció."]
["3. La durada mínima de la formació grupal s'estableix en 10 hores per a cada persona participant i el mínim de participació s'estableix en 10 persones. Serà exigible el full de signatura de les persones participants en l’acció grupal amb les hores totals de la formació grupal amb una participació mínima per persona del 80% del total d’hores."]
["4. Caldrà justificar  la contribució directa de les accions en la millora del projecte empresarial."]
["5. Es podran organitzar sessions de formació compartides per diferents entitats d’economia social i solidària, per tal d’optimitzar recursos i temps destinat a la realització de les accions, i afavorir la intercooperació."]
["6. Els materials produïts: de difusió, estudis, informes o materials didàctics utilitzats, etc. en el cas de tractar-se de despesa elegible de la subvenció, hauran de tenir llicència Creative Commons -Compartir Igual- (share a like) i no podrà tenir la condició –Sense Obres Derivades- (no derivate Works)."]
[]
["Submodalitat Ac2. Despeses de matriculació del personal de l’organització en accions formatives externes o bé despeses salarials del personal de l’empresa/organització en la participació en accions formatives públiques o comunitàries sense cost de matriculació"]
["1.  La formació externa a subvencionar ha de tenir una durada mínima de 150 hores i/o un cost mínim de 600€ per a cada participant."]
["2. Per poder justificar despeses salarials de les persones treballadores de l’organització beneficiària de la subvenció, la durada mínima de les formacions de totes les persones participants haurà de ser de mínim 40h entre totes les persones participants de l’empresa/organització"]
["3. A efectes de justificar la subvenció, caldrà  desglossar les hores globals, de manera que es determinin uns mínims d’hores per persona que es formi."]
["4. Caldrà acreditar l’assistència i/o superació de les activitats formatives en el període de justificació,  mitjançant certificat de l’organització proveïdora de la formació on constin les hores, dates i persona/es formada/es de l’empresa/organització."]
["5.  Son subvencionables fins al 30% de les despeses salarials de les persones formades de l’organització beneficiària de la subvenció, només pels casos que participin en accions formatives de les administracions públiques, universitats i ateneus cooperatius i equivalents a les hores efectivament dedicades a aquesta formació "]
["6. Caldrà justificar  la contribució directa de les accions en la millora del projecte empresarial."]
[]
["Submodalitat Ac3: Pràctiques de les persones estudiants universitàries i de formació dual de FP en organitzacions i empreses de l’ESS"]
["1.  Serà exigible en el moment de la justificació presentar el Conveni de Cooperació Educativa amb la universitat respectiva, o bé l’Acord Formatiu de Col•laboració (en el cas de beca) o el Contracte de formació i aprenentatge amb el Centre de Formació Professional corresponent."]
["2.  L'alumnat beneficiari han de ser persones residents a la ciutat de Barcelona o estar matriculats/des  en universitats o centres de formació de la ciutat de Barcelona."]
["3.  El programa de pràctiques de l'alumnat ha de ser d’una durada mínima de 400 hores. "]
["4.  Només pot presentar-se una sol·licitud per un lloc de pràctiques per l'organització sol·licitant. "]
["5.  Caldrà donar d’alta a l’alumne/a en la seguretat social com a alumne/a en pràctiques (tant per pràctiques curriculars com extracurriculars universitàries com per als alumnes de FP en formació dual –modalitat beca-)."]
["6.  Caldrà remunerar l’alumne/a en pràctiques universitàries (curriculars o extracurriculars) amb un cost brut hora mínim de 6€/hora o superior.     "]
["7.  Caldrà remunerar l’alumne/a segons la modalitat d’FP dual escollida com a mínim d’acord amb la normativa específica que estableix el Departament d’Educació de la Generalitat de Catalunya o superior"]
["8.  La formalització de les pràctiques, el desenvolupament del contingut, avaluació i seguiment s’ajustarà a la normativa vigent del Departament d’Educació de la Generalitat de Catalunya i d’altres normes que li siguin d’aplicació."]

{"sheet":"Resum Pressupost","index":2,"n_rows":25,"n_cols":11,"rows_kept":25,"cut":false,"hidden":false,"merged":[[18,6,18,7],[21,7,21,8],[24,7,24,9],[27,1,27,9],[5,9,6,9],[1,2,1,7],[4,0,4,1],[23,7,23,8],[5,0,6,1],[5,2,6,2],[5,3,6,3],[5,4,6,4],[5,6,6,7],[5,8,6,8],[7,0,13,0],[14,0,16,0],[17,0,21,0]]}
[]
[null,null,"Resum pressupost modalitat Ac"]
[]
[null,null,null,null,null,null,null,null,null,"MODALITAT Ac1-Ac2-Ac3"]
["DESPESES PREVISTES",null,null,null,null,null,"INGRESSOS PREVISTOS"]
["Despeses directes \n(aquelles que s'identifiquen directament amb el projecte)",null,"Previsió inicial cost total","Previsió reformulada cost total","Import imputat a la subvenció atorgada",null,"Ingressos previstos",null,"Previsió inicial ingrés total","Previsió reformulada ingrés total"]
[]
["Ac1","1.  Honoraris de les persones formadores externes (preu màxim hora 60€/hora, inclòs IRPF si escau, no inclou IVA si formació no està exempta)",{"$f":"+'Reformulació Pressupost Ac'!D23","v":0},{"$f":"+'Reformulació Pressupost Ac'!H23","v":0},{"$f":"+'Reformulació Pressupost Ac'!F23","v":0},{"$f":"+IF(D8<0,\"No s'admeten valors negatius\",\"\")","v":""},"A.","Subvenció municipal (import sol·licitat a la instància/atorgat)"]
[null,"2.  Lloguer de béns immobles vinculats directament a la realització de la formació",{"$f":"+'Reformulació Pressupost Ac'!D27","v":0},{"$f":"+'Reformulació Pressupost Ac'!H27","v":0},{"$f":"+'Reformulació Pressupost Ac'!F27","v":0},{"$f":"+IF(D9<0,\"No s'admeten valors negatius\",\"\")","v":""},"B.","Subvencions d'altres administracions",null,null,{"$f":"+IF(J9<0,\"No s'admeten valors negatius\",\"\")","v":""}]
[null,"3.  Adquisició de materials i béns consumibles necessaris per la realització de la formació",{"$f":"+'Reformulació Pressupost Ac'!D31","v":0},{"$f":"+'Reformulació Pressupost Ac'!H31","v":0},{"$f":"+'Reformulació Pressupost Ac'!F31","v":0},{"$f":"+IF(D10<0,\"No s'admeten valors negatius\",\"\")","v":""},"C.","Subvencions d'ens privats",null,null,""]
[null,"4.  Transport – missatgeria directament vinculats amb la realització de la formació",{"$f":"+'Reformulació Pressupost Ac'!D39","v":0},{"$f":"+'Reformulació Pressupost Ac'!H39","v":0},{"$f":"+'Reformulació Pressupost Ac'!F39","v":0},{"$f":"+IF(D11<0,\"No s'admeten valors negatius\",\"\")","v":""},"D.","Recursos propis de l'organització aplicats al projecte"]
[null,"5.  Assegurances",{"$f":"+'Reformulació Pressupost Ac'!D39","v":0},{"$f":"+'Reformulació Pressupost Ac'!H39","v":0},{"$f":"+'Reformulació Pressupost Ac'!F39","v":0},null,"E.","Taquillatge"]
[null,"6.  Viatges i desplaçaments imputables a les activitats del projecte  (màxim 10% subvenció) ",{"$f":"+'Reformulació Pressupost Ac'!D43","v":0},{"$f":"+'Reformulació Pressupost Ac'!H43","v":0},{"$f":"+'Reformulació Pressupost Ac'!F43","v":0},null,"F.","Quotes d'inscripció"]
[null,"Subtotal despeses directes Ac1",{"$f":"SUM(C8:C13)","v":0},{"$f":"SUM(D8:D13)","v":0},{"$f":"SUM(E8:E13)","v":0},null,"G.","Venda de Productes"]
["Ac2","1. Despeses de matriculació en accions formatives externes (mínim de 150 hores i/o cost mínim de 600€ per a cada participant)",{"$f":"+'Reformulació Pressupost Ac'!D51","v":0},{"$f":"+'Reformulació Pressupost Ac'!H51","v":0},{"$f":"+'Reformulació Pressupost Ac'!F51","v":0},null,"H","Publicitat i/o Esponsorització"]
[null,"2. Cost salarial persones treballadores que participin en accions formatives de les administracions públiques, universitats i ateneus cooperatius i equivalents a les hores efectivament dedicades a aquesta formació (màxim 30% subvenció)",{"$f":"+'Reformulació Pressupost Ac'!D56","v":0},{"$f":"+'Reformulació Pressupost Ac'!H56","v":0},{"$f":"+'Reformulació Pressupost Ac'!F56","v":0},null,"I.","Altres ingressos"]
[null,"Subtotal despeses directes Ac2",{"$f":"SUM(C15:C16)","v":0},{"$f":"SUM(D15:D16)","v":0},{"$f":"SUM(E15:E16)","v":0},null,null,"Total Ingressos",{"$f":"SUM(I8:I16)","v":0},{"$f":"SUM(J8:J16)","v":0}]
["Ac3","1.  Despeses d’ajut econòmic –beca- de la persona estudiant en pràctiques (durada mínima 400 hores, i cost brut hora: mínim de 6€/hora en pràctiques universitàries, i mínim d'acord amb la normativa específica Dep. Educació en FP dual)",{"$f":"+'Reformulació Pressupost Ac'!D65","v":0},{"$f":"+'Reformulació Pressupost Ac'!H65","v":0},{"$f":"+'Reformulació Pressupost Ac'!F65","v":0}]
[null,"2.  Despeses de seguretat social de l'alumne/a en pràctiques",{"$f":"+'Reformulació Pressupost Ac'!D70","v":0},{"$f":"+'Reformulació Pressupost Ac'!H70","v":0},{"$f":"+'Reformulació Pressupost Ac'!F70","v":0},null,"Ingressos menys despeses ",null,{"$f":"+I17-C23","v":0},{"$f":"+J17-D23","v":0}]
[null,"3.  Despeses del contracte laboral de la formació dual, modalitat contracte de formació i aprenentatge",{"$f":"+'Reformulació Pressupost Ac'!D75","v":0},{"$f":"+'Reformulació Pressupost Ac'!H75","v":0},{"$f":"+'Reformulació Pressupost Ac'!F75","v":0}]
[null,"4.  Despeses de gestió associades a la tramitació del Conveni de Cooperació Educativa o l’Acord Formatiu de Col·laboració/ Contracte de formació i aprenentatge.",{"$f":"+'Reformulació Pressupost Ac'!D80","v":0},{"$f":"+'Reformulació Pressupost Ac'!H80","v":0},{"$f":"+'Reformulació Pressupost Ac'!F80","v":0},{"$f":"+IF(D21<0,\"No s'admeten valors negatius\",\"\")","v":""}]
[null,"Subtotal despeses directes Ac3",{"$f":"SUM(C18:C21)","v":0},{"$f":"SUM(D18:D21)","v":0},{"$f":"SUM(E18:E21)","v":0},null,null,"% subvencionat inicialment",null,{"$f":"I8/C23","v":{"$error":"#DIV/0!"}}]
["Ac","Total Despeses Ac",{"$f":"+C14+C17+C22","v":0},{"$f":"+D14+D17+D22","v":0},{"$f":"+E14+E17+E22","v":0}]
[null,null,null,null,null,null,null,"% subvencionat després de reformular",null,{"$f":"+J8/D23","v":{"$error":"#DIV/0!"}},"*"]
[null,null,null,null,null,null,null,"*Aquest percentatge ha de ser igual o menor al percentatge subvencionat inicialment."]